[Event "*** Titled Tuesday Blitz"]
[Site "Chess.com"]
[Date "2019.08.06"]
[Round "8"]
[White "NTBT_DHS"]
[Black "Wolverine_master"]
[Result "1-0"]
[WhiteElo "2644"]
[BlackElo "2099"]
[TimeControl "180+2"]
[EndTime "14:51:41 PDT"]
[Termination "NTBT_DHS won by checkmate"]

1. d4 {[%clk 0:03:01.9]} 1... d5 {[%clk 0:03:00.3]} 2. c4 {[%clk 0:03:02.4]}
2... e6 {[%clk 0:03:01.1]} 3. Nf3 {[%clk 0:03:03.7]} 3... Nf6 {[%clk 0:03:02.6]}
4. g3 {[%clk 0:03:05]} 4... Be7 {[%clk 0:03:03.1]} 5. Bg2 {[%clk 0:03:06.4]}
5... O-O {[%clk 0:03:04.6]} 6. O-O {[%clk 0:03:05.1]} 6... dxc4 {[%clk
0:03:05.6]} 7. Qc2 {[%clk 0:03:06.1]} 7... a6 {[%clk 0:03:06.7]} 8. Qxc4 {[%clk
0:03:05.3]} 8... b5 {[%clk 0:03:07.9]} 9. Qc2 {[%clk 0:03:06.4]} 9... Bb7 {[%clk
0:03:09.4]} 10. Bd2 {[%clk 0:03:05.1]} 10... Be4 {[%clk 0:03:10.2]} 11. Qc1
{[%clk 0:03:04.3]} 11... Nbd7 {[%clk 0:03:10.5]} 12. Ba5 {[%clk 0:03:05.2]}
12... Ra7 {[%clk 0:03:08.6]} 13. Nbd2 {[%clk 0:03:02.5]} 13... Ba8 {[%clk
0:02:51.9]} 14. Qc2 {[%clk 0:03:01.1]} 14... Qc8 {[%clk 0:02:32.5]} 15. b4
{[%clk 0:02:40.1]} 15... Bd6 {[%clk 0:00:58.8]} 16. Rac1 {[%clk 0:02:17]} 16...
Bd5 {[%clk 0:00:47.6]} 17. e4 {[%clk 0:02:16.2]} 17... Nxe4 {[%clk 0:00:09.8]}
18. Nxe4 {[%clk 0:02:16.6]} 18... Qa8 {[%clk 0:00:08.4]} 19. Rfe1 {[%clk
0:02:12.9]} 19... Nf6 {[%clk 0:00:09.6]} 20. Nfg5 {[%clk 0:02:09.6]} 20... h6
{[%clk 0:00:05.9]} 21. Nxf6+ {[%clk 0:02:10.3]} 21... gxf6 {[%clk 0:00:06.8]}
22. Qh7# {[%clk 0:02:12.2]} 1-0

[Event "*** Titled Tuesday Blitz"]
[Site "Chess.com"]
[Date "2019.08.06"]
[Round "8"]
[White "VladimirBelous"]
[Black "giantslayer83"]
[Result "1-0"]
[WhiteElo "2823"]
[BlackElo "2660"]
[TimeControl "180+2"]
[EndTime "14:51:59 PDT"]
[Termination "VladimirBelous won by resignation"]

1. c4 {[%clk 0:03:01.9]} 1... e6 {[%clk 0:02:59.7]} 2. Nf3 {[%clk 0:03:02.5]}
2... d5 {[%clk 0:03:00.4]} 3. g3 {[%clk 0:03:01.7]} 3... Nf6 {[%clk 0:03:00.7]}
4. Bg2 {[%clk 0:03:03.2]} 4... Be7 {[%clk 0:02:54.7]} 5. O-O {[%clk 0:03:03.5]}
5... O-O {[%clk 0:02:55.7]} 6. d4 {[%clk 0:03:01.8]} 6... dxc4 {[%clk
0:02:56.5]} 7. Qc2 {[%clk 0:03:03]} 7... a6 {[%clk 0:02:57]} 8. Rd1 {[%clk
0:03:03.4]} 8... b5 {[%clk 0:02:51.6]} 9. Ne5 {[%clk 0:03:04.6]} 9... c6 {[%clk
0:02:47.1]} 10. Nxc6 {[%clk 0:03:01.1]} 10... Nxc6 {[%clk 0:02:48]} 11. Bxc6
{[%clk 0:03:02.4]} 11... Ra7 {[%clk 0:02:48.6]} 12. a4 {[%clk 0:03:03.9]} 12...
Rc7 {[%clk 0:02:28.4]} 13. axb5 {[%clk 0:03:00.4]} 13... axb5 {[%clk 0:02:30.3]}
14. Bxb5 {[%clk 0:02:57.4]} 14... Bb7 {[%clk 0:02:30.9]} 15. Nc3 {[%clk
0:02:54.5]} 15... Nd5 {[%clk 0:02:30.1]} 16. e4 {[%clk 0:02:49.8]} 16... Nb4
{[%clk 0:02:30.1]} 17. Qe2 {[%clk 0:02:49.6]} 17... Qc8 {[%clk 0:02:13.9]} 18.
Bf4 {[%clk 0:02:47.7]} 18... Rc6 {[%clk 0:02:08.2]} 19. Bxc6 {[%clk 0:02:40.5]}
19... Qxc6 {[%clk 0:02:10.1]} 20. d5 {[%clk 0:02:32.2]} 20... exd5 {[%clk
0:02:08]} 21. exd5 {[%clk 0:02:30.7]} 21... Qd7 {[%clk 0:02:03.5]} 22. Qxc4
{[%clk 0:02:30.3]} 22... Rc8 {[%clk 0:02:04.2]} 23. Qb5 {[%clk 0:02:17.4]} 23...
Qxb5 {[%clk 0:02:01.6]} 24. Nxb5 {[%clk 0:02:17.6]} 24... Nxd5 {[%clk
0:02:03.2]} 25. Nd6 {[%clk 0:02:10.6]} 25... Bxd6 {[%clk 0:02:03.4]} 26. Bxd6
{[%clk 0:02:11.1]} 26... h6 {[%clk 0:02:03.7]} 27. Ra5 {[%clk 0:02:06.6]} 27...
Nf6 {[%clk 0:02:03]} 28. Be7 {[%clk 0:01:58]} 28... Bf3 {[%clk 0:02:02.3]} 29.
Rd8+ {[%clk 0:01:58.1]} 29... Rxd8 {[%clk 0:02:01.1]} 30. Bxd8 {[%clk 0:02:00]}
30... Nd5 {[%clk 0:01:58.4]} 31. Ra3 {[%clk 0:01:58.2]} 31... Be2 {[%clk
0:01:57.8]} 32. f3 {[%clk 0:01:56.3]} 32... g5 {[%clk 0:01:55.2]} 33. Kf2 {[%clk
0:01:57.6]} 33... Bc4 {[%clk 0:01:55.2]} 34. Ra4 {[%clk 0:01:46.9]} 34... Bb3
{[%clk 0:01:55.6]} 35. Ra3 {[%clk 0:01:45.3]} 35... Bc2 {[%clk 0:01:55.9]} 36.
Ra5 {[%clk 0:01:41.5]} 36... Nb4 {[%clk 0:01:54.3]} 37. Ke3 {[%clk 0:01:40.3]}
37... Kg7 {[%clk 0:01:53]} 38. h4 {[%clk 0:01:38.9]} 38... Nc6 {[%clk
0:01:51.7]} 39. Rd5 {[%clk 0:01:37]} 39... Bb3 {[%clk 0:01:48]} 40. Rd6 {[%clk
0:01:37.3]} 40... Ne5 {[%clk 0:01:44.7]} 41. Bf6+ {[%clk 0:01:37.1]} 1-0

[Event "*** Titled Tuesday Blitz"]
[Site "Chess.com"]
[Date "2019.08.06"]
[Round "8"]
[White "underdogchss"]
[Black "Supernotar"]
[Result "0-1"]
[WhiteElo "2517"]
[BlackElo "2632"]
[TimeControl "180+2"]
[EndTime "14:52:00 PDT"]
[Termination "Supernotar won by resignation"]

1. d4 {[%clk 0:03:01.9]} 1... d5 {[%clk 0:02:58.8]} 2. Nf3 {[%clk 0:03:02.6]}
2... Nf6 {[%clk 0:02:59.4]} 3. c4 {[%clk 0:03:03.6]} 3... dxc4 {[%clk
0:02:59.6]} 4. e3 {[%clk 0:03:04.6]} 4... e6 {[%clk 0:03:00.5]} 5. Bxc4 {[%clk
0:03:05.5]} 5... a6 {[%clk 0:03:01.7]} 6. O-O {[%clk 0:03:02.8]} 6... b5 {[%clk
0:02:58.5]} 7. Bd3 {[%clk 0:03:02.5]} 7... Bb7 {[%clk 0:02:56.9]} 8. a4 {[%clk
0:03:03.1]} 8... b4 {[%clk 0:02:57.7]} 9. Qe2 {[%clk 0:03:01.6]} 9... Nbd7
{[%clk 0:02:58.7]} 10. e4 {[%clk 0:03:01.1]} 10... Be7 {[%clk 0:02:59.4]} 11.
Bf4 {[%clk 0:02:37.6]} 11... O-O {[%clk 0:02:57.1]} 12. Nbd2 {[%clk 0:02:38.4]}
12... c5 {[%clk 0:02:57.9]} 13. Bg5 {[%clk 0:02:21]} 13... cxd4 {[%clk
0:02:54.2]} 14. e5 {[%clk 0:02:22.3]} 14... Nd5 {[%clk 0:02:53.2]} 15. Bxe7
{[%clk 0:02:21.4]} 15... Qxe7 {[%clk 0:02:52.9]} 16. Qe4 {[%clk 0:02:20.4]}
16... g6 {[%clk 0:02:53.6]} 17. Qxd4 {[%clk 0:02:18.1]} 17... Rfd8 {[%clk
0:02:39.4]} 18. Ne4 {[%clk 0:02:15.6]} 18... Nf4 {[%clk 0:02:14.4]} 19. Nd6
{[%clk 0:01:56.2]} 19... Nxe5 {[%clk 0:01:37.1]} 20. Nxe5 {[%clk 0:01:55.3]}
20... Qg5 {[%clk 0:01:08.1]} 0-1

[Event "*** Titled Tuesday Blitz"]
[Site "Chess.com"]
[Date "2019.08.06"]
[Round "8"]
[White "Spring199"]
[Black "Saloni1299"]
[Result "1-0"]
[WhiteElo "2233"]
[BlackElo "2041"]
[TimeControl "180+2"]
[EndTime "14:52:05 PDT"]
[Termination "Spring199 won by resignation"]

1. d4 {[%clk 0:03:01.9]} 1... Nf6 {[%clk 0:03:00.2]} 2. c4 {[%clk 0:03:02.4]}
2... g6 {[%clk 0:03:00.9]} 3. Nc3 {[%clk 0:03:02.7]} 3... d5 {[%clk 0:03:01.9]}
4. cxd5 {[%clk 0:03:03.2]} 4... Nxd5 {[%clk 0:03:03.5]} 5. e4 {[%clk 0:03:04.6]}
5... Nxc3 {[%clk 0:03:04.5]} 6. bxc3 {[%clk 0:03:06.5]} 6... Bg7 {[%clk
0:03:05.7]} 7. Nf3 {[%clk 0:03:07.1]} 7... c5 {[%clk 0:03:06.7]} 8. Bb5+ {[%clk
0:03:07.7]} 8... Nc6 {[%clk 0:03:05.9]} 9. O-O {[%clk 0:03:02.3]} 9... cxd4
{[%clk 0:03:06.6]} 10. cxd4 {[%clk 0:03:02.9]} 10... O-O {[%clk 0:03:00.3]} 11.
Be3 {[%clk 0:02:53.4]} 11... Qa5 {[%clk 0:02:38.8]} 12. Qb3 {[%clk 0:02:33.4]}
12... Nb4 {[%clk 0:02:38.2]} 13. Be2 {[%clk 0:02:20.6]} 13... Be6 {[%clk
0:02:29.9]} 14. d5 {[%clk 0:02:16.8]} 14... Bd7 {[%clk 0:02:24]} 15. Bd2 {[%clk
0:02:11.1]} 15... Bxa1 {[%clk 0:01:35]} 16. Bxb4 {[%clk 0:02:10.5]} 16... Qb6
{[%clk 0:01:09.2]} 17. Rxa1 {[%clk 0:02:09.2]} 17... a5 {[%clk 0:01:10.7]} 18.
Bxe7 {[%clk 0:02:09]} 18... Qxb3 {[%clk 0:01:09.3]} 19. axb3 {[%clk 0:02:09.6]}
19... Rfe8 {[%clk 0:01:10.8]} 20. d6 {[%clk 0:02:08.3]} 20... Be6 {[%clk
0:01:11.7]} 21. Nd4 {[%clk 0:02:07.9]} 21... Bd7 {[%clk 0:00:53.4]} 22. Nb5
{[%clk 0:02:08.1]} 22... Bxb5 {[%clk 0:00:44]} 23. Bxb5 {[%clk 0:02:08]} 23...
Reb8 {[%clk 0:00:44.7]} 24. d7 {[%clk 0:02:07.6]} 24... b6 {[%clk 0:00:45.5]}
25. Rd1 {[%clk 0:01:59.7]} 25... Rd8 {[%clk 0:00:39.7]} 26. Bxd8 {[%clk
0:01:59.2]} 26... Rxd8 {[%clk 0:00:40.7]} 27. Rc1 {[%clk 0:01:59]} 27... Kf8
{[%clk 0:00:41.5]} 28. Rc8 {[%clk 0:01:59.6]} 28... Ke7 {[%clk 0:00:43.1]} 29.
Rxd8 {[%clk 0:02:00.7]} 29... Kxd8 {[%clk 0:00:44.7]} 30. Kf1 {[%clk 0:02:01.3]}
1-0

[Event "*** Titled Tuesday Blitz"]
[Site "Chess.com"]
[Date "2019.08.06"]
[Round "8"]
[White "Everyfishknows"]
[Black "kasparicy"]
[Result "1-0"]
[WhiteElo "2407"]
[BlackElo "2400"]
[TimeControl "180+2"]
[EndTime "14:52:16 PDT"]
[Termination "Everyfishknows won by resignation"]

1. Nf3 {[%clk 0:03:01.9]} 1... f5 {[%clk 0:02:58.9]} 2. d3 {[%clk 0:03:01.8]}
2... Nf6 {[%clk 0:03:00.4]} 3. e4 {[%clk 0:03:02.7]} 3... fxe4 {[%clk
0:02:58.9]} 4. dxe4 {[%clk 0:03:04.6]} 4... Nxe4 {[%clk 0:02:59.7]} 5. Bd3
{[%clk 0:03:05.1]} 5... Nf6 {[%clk 0:03:01.2]} 6. Ng5 {[%clk 0:03:06.1]} 6... d5
{[%clk 0:02:36.8]} 7. Bxh7 {[%clk 0:02:58]} 7... e5 {[%clk 0:02:01.4]} 8. Bg6+
{[%clk 0:02:55.3]} 8... Ke7 {[%clk 0:02:02.6]} 9. Nf7 {[%clk 0:02:51.2]} 9...
Qd7 {[%clk 0:01:59.8]} 10. Nxh8 {[%clk 0:02:48.9]} 10... Qe6 {[%clk 0:01:56.8]}
11. b3 {[%clk 0:02:35.7]} 11... c5 {[%clk 0:01:53.9]} 12. O-O {[%clk 0:02:27.7]}
12... b6 {[%clk 0:01:54.8]} 13. Re1 {[%clk 0:02:09.8]} 13... Nc6 {[%clk
0:01:54.8]} 14. Bb2 {[%clk 0:01:52.3]} 14... Bd7 {[%clk 0:01:49.7]} 15. Nf7
{[%clk 0:01:50.8]} 15... d4 {[%clk 0:01:45.9]} 16. Nd2 {[%clk 0:01:40.1]} 16...
Nd5 {[%clk 0:01:45]} 17. Qh5 {[%clk 0:01:27.8]} 17... Nf4 {[%clk 0:01:45.6]} 18.
Qg5+ {[%clk 0:01:26.9]} 18... Qf6 {[%clk 0:01:46.6]} 19. Rxe5+ {[%clk 0:00:55]}
19... Nxe5 {[%clk 0:01:43.9]} 20. Qxe5+ {[%clk 0:00:56.3]} 20... Qxe5 {[%clk
0:01:43.4]} 21. Nxe5 {[%clk 0:00:58.2]} 21... Nxg6 {[%clk 0:01:27.1]} 22. Nxg6+
{[%clk 0:00:58.7]} 22... Kf6 {[%clk 0:01:29]} 23. Nxf8 {[%clk 0:00:57.3]} 23...
Rxf8 {[%clk 0:01:29]} 24. Re1 {[%clk 0:00:58.1]} 24... Bc6 {[%clk 0:01:30.1]}
25. f3 {[%clk 0:00:56.3]} 25... Rd8 {[%clk 0:01:30.8]} 26. Ne4+ {[%clk
0:00:55.2]} 26... Kf5 {[%clk 0:01:31.6]} 27. Kf2 {[%clk 0:00:55.3]} 27... d3
{[%clk 0:01:31.7]} 28. cxd3 {[%clk 0:00:54.6]} 28... Rxd3 {[%clk 0:01:33.6]} 29.
Re2 {[%clk 0:00:56]} 29... Rd1 {[%clk 0:01:29.1]} 30. Bxg7 {[%clk 0:00:53.9]}
1-0

[Event "*** Titled Tuesday Blitz"]
[Site "Chess.com"]
[Date "2019.08.06"]
[Round "8"]
[White "JMatias"]
[Black "politeplayer"]
[Result "1-0"]
[WhiteElo "2446"]
[BlackElo "2247"]
[TimeControl "180+2"]
[EndTime "14:52:23 PDT"]
[Termination "JMatias won by resignation"]

1. c4 {[%clk 0:03:01.6]} 1... e6 {[%clk 0:03:00.1]} 2. g3 {[%clk 0:03:02]} 2...
d5 {[%clk 0:03:01.1]} 3. Bg2 {[%clk 0:03:03.2]} 3... c5 {[%clk 0:03:01.6]} 4.
Nf3 {[%clk 0:03:04.3]} 4... Nc6 {[%clk 0:03:02.4]} 5. O-O {[%clk 0:03:05.4]}
5... Nf6 {[%clk 0:03:03.4]} 6. b3 {[%clk 0:03:04.5]} 6... Be7 {[%clk 0:02:58.3]}
7. Bb2 {[%clk 0:03:04.7]} 7... O-O {[%clk 0:02:57.7]} 8. e3 {[%clk 0:03:06.1]}
8... dxc4 {[%clk 0:02:53.8]} 9. bxc4 {[%clk 0:03:06.6]} 9... Qc7 {[%clk
0:02:54]} 10. Nc3 {[%clk 0:03:07]} 10... a6 {[%clk 0:02:49]} 11. Rc1 {[%clk
0:03:07.2]} 11... Rd8 {[%clk 0:02:48.6]} 12. Qe2 {[%clk 0:03:08.2]} 12... b5
{[%clk 0:02:30.9]} 13. cxb5 {[%clk 0:03:08]} 13... axb5 {[%clk 0:02:31.1]} 14.
Nxb5 {[%clk 0:03:01]} 14... Qb6 {[%clk 0:02:32]} 15. Ne5 {[%clk 0:02:28.3]}
15... Nxe5 {[%clk 0:02:19]} 16. Bxe5 {[%clk 0:02:28]} 16... Ba6 {[%clk
0:02:05.3]} 17. a4 {[%clk 0:02:22.3]} 17... Bxb5 {[%clk 0:02:05.9]} 18. axb5
{[%clk 0:02:10.1]} 18... Ra2 {[%clk 0:02:05]} 19. Rfd1 {[%clk 0:02:02.3]} 19...
Nd5 {[%clk 0:01:46.8]} 20. Qc4 {[%clk 0:01:54.9]} 20... Nb4 {[%clk 0:01:44.6]}
21. d4 {[%clk 0:01:51.5]} 21... cxd4 {[%clk 0:01:27.5]} 22. Rxd4 {[%clk
0:01:51.7]} 22... Rf8 {[%clk 0:00:53.8]} 23. Rg4 {[%clk 0:01:38.9]} 23... f6
{[%clk 0:00:50.7]} 24. Bc7 {[%clk 0:01:39.8]} 24... Qc5 {[%clk 0:00:21.1]} 25.
Qxe6+ {[%clk 0:01:37.1]} 25... Rf7 {[%clk 0:00:20]} 1-0

[Event "*** Titled Tuesday Blitz"]
[Site "Chess.com"]
[Date "2019.08.06"]
[Round "8"]
[White "LuisFSiles"]
[Black "NemtsevIgor"]
[Result "0-1"]
[WhiteElo "2188"]
[BlackElo "2308"]
[TimeControl "180+2"]
[EndTime "14:52:33 PDT"]
[Termination "NemtsevIgor won by resignation"]

1. d4 {[%clk 0:03:01.9]} 1... c6 {[%clk 0:03:00.5]} 2. c4 {[%clk 0:03:00.6]}
2... d6 {[%clk 0:03:01.6]} 3. Nf3 {[%clk 0:02:56.8]} 3... h6 {[%clk 0:03:02.7]}
4. Nc3 {[%clk 0:02:53.1]} 4... g5 {[%clk 0:03:03]} 5. e4 {[%clk 0:02:46.1]} 5...
Bg7 {[%clk 0:03:03.9]} 6. Be3 {[%clk 0:02:45.6]} 6... Nd7 {[%clk 0:03:01.6]} 7.
Be2 {[%clk 0:02:45.5]} 7... Ngf6 {[%clk 0:02:57.3]} 8. Nd2 {[%clk 0:02:16.5]}
8... e5 {[%clk 0:02:53.1]} 9. d5 {[%clk 0:02:16.5]} 9... c5 {[%clk 0:02:53.8]}
10. h4 {[%clk 0:02:11.2]} 10... gxh4 {[%clk 0:02:46.4]} 11. Rxh4 {[%clk
0:01:48.2]} 11... Nf8 {[%clk 0:02:47.1]} 12. Rh1 {[%clk 0:01:41.7]} 12... a6
{[%clk 0:02:46.9]} 13. a4 {[%clk 0:01:42]} 13... Rb8 {[%clk 0:02:47]} 14. Nf1
{[%clk 0:01:40.5]} 14... Ng6 {[%clk 0:02:45.1]} 15. Ng3 {[%clk 0:01:40.4]} 15...
Nf4 {[%clk 0:02:45.9]} 16. Bxf4 {[%clk 0:01:38.4]} 16... exf4 {[%clk 0:02:46.8]}
17. Nf5 {[%clk 0:01:36.8]} 17... Bxf5 {[%clk 0:02:45.1]} 18. exf5 {[%clk
0:01:38.7]} 18... Nd7 {[%clk 0:02:44.6]} 19. Qd2 {[%clk 0:01:31.1]} 19... Qb6
{[%clk 0:02:30.8]} 20. Ne4 {[%clk 0:01:16.5]} 20... Be5 {[%clk 0:02:23.9]} 21.
g3 {[%clk 0:01:07.3]} 21... fxg3 {[%clk 0:02:21.8]} 22. f4 {[%clk 0:01:08.3]}
22... Bd4 {[%clk 0:02:11.4]} 23. a5 {[%clk 0:01:02.4]} 23... Qxb2 {[%clk
0:01:55.2]} 24. Nxd6+ {[%clk 0:00:58]} 24... Ke7 {[%clk 0:01:56.1]} 25. Ne4
{[%clk 0:00:27.8]} 25... Qxa1+ {[%clk 0:01:52.3]} 26. Bd1 {[%clk 0:00:28.6]}
26... Rbe8 {[%clk 0:01:41.2]} 27. Kf1 {[%clk 0:00:20.5]} 27... Qb2 {[%clk
0:01:33.8]} 28. Qd3 {[%clk 0:00:20.5]} 28... g2+ {[%clk 0:01:33.4]} 0-1

[Event "*** Titled Tuesday Blitz"]
[Site "Chess.com"]
[Date "2019.08.06"]
[Round "8"]
[White "Litti"]
[Black "ruvat"]
[Result "1-0"]
[WhiteElo "2488"]
[BlackElo "2362"]
[TimeControl "180+2"]
[EndTime "14:52:35 PDT"]
[Termination "Litti won by resignation"]

1. e4 {[%clk 0:03:01.9]} 1... d6 {[%clk 0:03:00.7]} 2. d4 {[%clk 0:03:01.8]}
2... Nf6 {[%clk 0:03:01.6]} 3. Nc3 {[%clk 0:03:02.5]} 3... g6 {[%clk 0:03:02.5]}
4. Nf3 {[%clk 0:03:00.5]} 4... Bg7 {[%clk 0:03:03.3]} 5. Be3 {[%clk 0:03:00.9]}
5... O-O {[%clk 0:03:01.6]} 6. Qd2 {[%clk 0:03:01.9]} 6... c6 {[%clk 0:02:59.4]}
7. O-O-O {[%clk 0:03:02]} 7... b5 {[%clk 0:02:54.6]} 8. Bd3 {[%clk 0:03:02.1]}
8... Nbd7 {[%clk 0:02:28.5]} 9. h4 {[%clk 0:02:57.9]} 9... h5 {[%clk 0:02:22.8]}
10. Bh6 {[%clk 0:02:50.2]} 10... b4 {[%clk 0:02:15.6]} 11. Bxg7 {[%clk
0:02:50.8]} 11... Kxg7 {[%clk 0:02:13.1]} 12. Ne2 {[%clk 0:02:46.7]} 12... Qa5
{[%clk 0:02:10.8]} 13. Kb1 {[%clk 0:02:46.7]} 13... Rb8 {[%clk 0:02:09.8]} 14.
e5 {[%clk 0:02:40.4]} 14... dxe5 {[%clk 0:02:03.3]} 15. Qg5 {[%clk 0:02:40.9]}
15... Nd5 {[%clk 0:01:11.8]} 16. Bc4 {[%clk 0:01:15.2]} 16... e4 {[%clk
0:00:38.6]} 17. Ne5 {[%clk 0:01:11.7]} 17... Nxe5 {[%clk 0:00:26.6]} 18. Qxe5+
{[%clk 0:01:13.6]} 18... Kg8 {[%clk 0:00:23.6]} 19. Qxb8 {[%clk 0:01:13.7]}
19... Be6 {[%clk 0:00:14.5]} 20. Qe5 {[%clk 0:01:07.2]} 20... Nc3+ {[%clk
0:00:10.3]} 1-0

[Event "*** Titled Tuesday Blitz"]
[Site "Chess.com"]
[Date "2019.08.06"]
[Round "8"]
[White "IMRosen"]
[Black "Saitama_Hero"]
[Result "0-1"]
[WhiteElo "2617"]
[BlackElo "2349"]
[TimeControl "180+2"]
[EndTime "14:52:54 PDT"]
[Termination "Saitama_Hero won by checkmate"]

1. d4 {[%clk 0:03:01.9]} 1... Nf6 {[%clk 0:02:59.9]} 2. Bf4 {[%clk 0:03:02.8]}
2... g6 {[%clk 0:03:01.1]} 3. Nc3 {[%clk 0:03:01.9]} 3... d5 {[%clk 0:03:00.2]}
4. e3 {[%clk 0:03:03.2]} 4... Bg7 {[%clk 0:03:00.4]} 5. h4 {[%clk 0:03:04.8]}
5... O-O {[%clk 0:02:57.4]} 6. h5 {[%clk 0:03:05.4]} 6... c5 {[%clk 0:02:50.9]}
7. hxg6 {[%clk 0:02:48.9]} 7... hxg6 {[%clk 0:02:52.8]} 8. dxc5 {[%clk
0:02:48.8]} 8... Qa5 {[%clk 0:02:44.9]} 9. Be5 {[%clk 0:02:34.4]} 9... Nc6
{[%clk 0:02:43.1]} 10. Bd4 {[%clk 0:02:35]} 10... e5 {[%clk 0:02:39.1]} 11. a3
{[%clk 0:02:14]} 11... exd4 {[%clk 0:02:38.9]} 12. b4 {[%clk 0:02:15.7]} 12...
Qc7 {[%clk 0:02:36.7]} 13. exd4 {[%clk 0:02:16.7]} 13... Re8+ {[%clk 0:02:30.1]}
14. Be2 {[%clk 0:02:17.3]} 14... Bg4 {[%clk 0:02:18.5]} 15. Kf1 {[%clk
0:02:13.6]} 15... Qf4 {[%clk 0:02:13.2]} 16. g3 {[%clk 0:01:24.5]} 16... Bxe2+
{[%clk 0:02:07.4]} 17. Ncxe2 {[%clk 0:01:20]} 17... Qe4 {[%clk 0:02:04.3]} 18.
Rh4 {[%clk 0:01:19.1]} 18... Qe6 {[%clk 0:02:03.7]} 19. Nf4 {[%clk 0:01:09.9]}
19... Qf5 {[%clk 0:02:00.7]} 20. Qd3 {[%clk 0:00:51.5]} 20... Ne4 {[%clk
0:01:55.7]} 21. c3 {[%clk 0:00:44.3]} 21... g5 {[%clk 0:01:43.2]} 22. Rh5 {[%clk
0:00:31.7]} 22... Qg4 {[%clk 0:01:44.6]} 23. f3 {[%clk 0:00:13]} 23... Nxg3+
{[%clk 0:01:41.2]} 24. Kf2 {[%clk 0:00:04.1]} 24... Qxf4 {[%clk 0:01:42.6]} 25.
Nh3 {[%clk 0:00:05.3]} 25... Ne4+ {[%clk 0:01:38.4]} 26. Kf1 {[%clk 0:00:04.4]}
26... Qh2 {[%clk 0:01:21]} 27. Rd1 {[%clk 0:00:03]} 27... Ng3# {[%clk 0:01:20]}
0-1

[Event "*** Titled Tuesday Blitz"]
[Site "Chess.com"]
[Date "2019.08.06"]
[Round "8"]
[White "riconaipe"]
[Black "ChessQueen"]
[Result "0-1"]
[WhiteElo "2453"]
[BlackElo "2631"]
[TimeControl "180+2"]
[EndTime "14:52:56 PDT"]
[Termination "ChessQueen won by resignation"]

1. d4 {[%clk 0:03:00.5]} 1... Nf6 {[%clk 0:02:59.1]} 2. c4 {[%clk 0:03:00.9]}
2... e6 {[%clk 0:03:00.1]} 3. Nc3 {[%clk 0:03:00.9]} 3... Bb4 {[%clk 0:03:00.2]}
4. Nf3 {[%clk 0:03:02]} 4... b6 {[%clk 0:03:00.8]} 5. Bg5 {[%clk 0:03:02.6]}
5... Bb7 {[%clk 0:02:57.7]} 6. Nd2 {[%clk 0:03:04]} 6... h6 {[%clk 0:02:55.5]}
7. Bh4 {[%clk 0:03:04.5]} 7... g5 {[%clk 0:02:55.3]} 8. Bg3 {[%clk 0:03:05.3]}
8... Bxc3 {[%clk 0:02:55.8]} 9. bxc3 {[%clk 0:03:05.5]} 9... d6 {[%clk
0:02:56.7]} 10. f3 {[%clk 0:03:04.7]} 10... Nbd7 {[%clk 0:02:50.8]} 11. e4
{[%clk 0:03:05.9]} 11... e5 {[%clk 0:02:51.2]} 12. Bd3 {[%clk 0:03:07]} 12...
Qe7 {[%clk 0:02:51.4]} 13. O-O {[%clk 0:03:07.4]} 13... O-O-O {[%clk 0:02:46.4]}
14. a4 {[%clk 0:03:07.5]} 14... a5 {[%clk 0:02:44.4]} 15. Qe2 {[%clk 0:02:55.2]}
15... h5 {[%clk 0:02:43.9]} 16. Bf2 {[%clk 0:02:55.3]} 16... g4 {[%clk
0:02:41.9]} 17. Nb3 {[%clk 0:02:54.8]} 17... gxf3 {[%clk 0:02:33.8]} 18. gxf3
{[%clk 0:02:55.6]} 18... h4 {[%clk 0:02:27.7]} 19. c5 {[%clk 0:02:53]} 19...
dxc5 {[%clk 0:02:25.7]} 20. dxc5 {[%clk 0:02:53.9]} 20... Nh5 {[%clk 0:02:26.4]}
21. Ba6 {[%clk 0:02:46]} 21... Nf4 {[%clk 0:02:22]} 22. Bxb7+ {[%clk 0:02:33.7]}
22... Kxb7 {[%clk 0:02:20.9]} 23. Nxa5+ {[%clk 0:02:32.9]} 23... bxa5 {[%clk
0:01:21.5]} 24. c6+ {[%clk 0:01:59.2]} 24... Kxc6 {[%clk 0:01:22.2]} 25. Qc4+
{[%clk 0:01:50.5]} 25... Kb7 {[%clk 0:01:19.9]} 26. Rfb1+ {[%clk 0:01:28.3]}
26... Nb6 {[%clk 0:01:17.5]} 27. Bxb6 {[%clk 0:01:22.4]} 27... Qg5+ {[%clk
0:00:54.5]} 28. Kf1 {[%clk 0:01:10.8]} 28... Qg2+ {[%clk 0:00:55.1]} 29. Ke1
{[%clk 0:01:11.6]} 29... Nd3+ {[%clk 0:00:50.7]} 30. Kd1 {[%clk 0:01:04.8]}
30... Nb2+ {[%clk 0:00:45.9]} 0-1

[Event "*** Titled Tuesday Blitz"]
[Site "Chess.com"]
[Date "2019.08.06"]
[Round "8"]
[White "Irochka83"]
[Black "VeraNebolsina"]
[Result "0-1"]
[WhiteElo "2333"]
[BlackElo "2399"]
[TimeControl "180+2"]
[EndTime "14:53:03 PDT"]
[Termination "VeraNebolsina won on time"]

1. d4 {[%clk 0:03:01.9]} 1... Nf6 {[%clk 0:02:58.3]} 2. c4 {[%clk 0:03:02.7]}
2... g6 {[%clk 0:02:58.9]} 3. Nc3 {[%clk 0:03:03.1]} 3... d5 {[%clk 0:02:57]} 4.
cxd5 {[%clk 0:02:58.9]} 4... Nxd5 {[%clk 0:02:57.3]} 5. e4 {[%clk 0:03:00.4]}
5... Nxc3 {[%clk 0:02:58.2]} 6. bxc3 {[%clk 0:03:01.8]} 6... Bg7 {[%clk
0:02:59.3]} 7. Be3 {[%clk 0:03:01.8]} 7... c5 {[%clk 0:02:58.3]} 8. Rc1 {[%clk
0:03:02.6]} 8... Qa5 {[%clk 0:02:55.9]} 9. Qd2 {[%clk 0:03:03.4]} 9... cxd4
{[%clk 0:02:52.4]} 10. cxd4 {[%clk 0:03:03.6]} 10... Qxd2+ {[%clk 0:02:50.8]}
11. Kxd2 {[%clk 0:02:59.7]} 11... O-O {[%clk 0:02:52.4]} 12. Nf3 {[%clk
0:02:50.4]} 12... e6 {[%clk 0:02:28]} 13. Rc7 {[%clk 0:02:16.2]} 13... Nc6
{[%clk 0:02:21.4]} 14. Bb5 {[%clk 0:02:14.8]} 14... f5 {[%clk 0:02:14.1]} 15.
exf5 {[%clk 0:01:50.5]} 15... exf5 {[%clk 0:02:11.3]} 16. Bc4+ {[%clk
0:01:05.5]} 16... Kh8 {[%clk 0:02:10.9]} 17. Ng5 {[%clk 0:01:05]} 17... f4
{[%clk 0:02:10.6]} 18. Nf7+ {[%clk 0:01:05.9]} 18... Rxf7 {[%clk 0:02:09.7]} 19.
Rxf7 {[%clk 0:01:06.6]} 19... fxe3+ {[%clk 0:02:09.6]} 20. fxe3 {[%clk
0:01:07.8]} 20... Bf5 {[%clk 0:02:05.6]} 21. Rxb7 {[%clk 0:00:47.3]} 21... Bh6
{[%clk 0:01:49.6]} 22. Bd5 {[%clk 0:00:20.9]} 22... Nxd4 {[%clk 0:01:35.5]} 23.
Rb4 {[%clk 0:00:21.3]} 23... Nc2 {[%clk 0:01:31.3]} 24. Bxa8 {[%clk 0:00:07.9]}
24... Nxb4 {[%clk 0:01:32.2]} 25. Rc1 {[%clk 0:00:08.2]} 25... Nxa2 {[%clk
0:01:23.3]} 26. Rc7 {[%clk 0:00:07.7]} 26... a5 {[%clk 0:01:15.9]} 27. Ra7
{[%clk 0:00:08]} 27... Nc1 {[%clk 0:01:13.7]} 0-1